fUSD/lending_fUSD_20251017
["ID","MTS","AMOUNT","RATE_DAILY","PERIOD"]
[391647151,1760716295252,-1192.11,0.00025479,2]
[391647152,1760716295262,-1753.72,0.00025479,2]
[391647153,1760716295272,-500.0,0.00025479,2]
[391647154,1760716295282,-500.0,0.00025479,2]
[391647155,1760716295291,-500.0,0.00025479,2]
[391647156,1760716295301,-300.0,0.00025479,2]
[391647157,1760716295311,-582.96913496,0.00025479,2]
[391647158,1760716295321,-652.64,0.00025479,2]
[391647159,1760716295331,-1000.0,0.00025479,2]
[391647160,1760716295341,-500.0,0.00025479,2]
[391647161,1760716295353,-500.0,0.00025479,2]
[391647162,1760716295363,-500.0,0.00025479,2]
[391647163,1760716295372,-820.53,0.00025479,2]
[391647164,1760716295382,-500.0,0.00025479,2]
[391647165,1760716295392,-500.0,0.00025479,2]
[391647166,1760716295401,-500.0,0.00025479,2]
[391647167,1760716295411,-500.0,0.00025479,2]
[391647168,1760716295420,-500.0,0.00025479,2]
[391647169,1760716295429,-1319.44,0.00025479,2]
[391647170,1760716295439,-487.59132101,0.00025479,2]
[391647171,1760716295448,-500.0,0.00025479,2]
[391647172,1760716295458,-1052.39,0.00025479,2]
[391647173,1760716295467,-500.0,0.00025479,2]
[391647174,1760716295476,-500.0,0.00025479,2]
[391647175,1760716295485,-1787.43,0.00025479,2]
[391647176,1760716295495,-191.21,0.00025479,2]
[391647177,1760716295503,-500.0,0.00025479,2]
[391647178,1760716295512,-500.0,0.00025479,2]
[391647179,1760716295522,-421.21900631,0.00025479,2]
[391647180,1760716295531,-500.0,0.00025479,2]
[391647181,1760716295540,-500.0,0.00025479,2]
[391647182,1760716295549,-689.83,0.00025479,2]
[391647183,1760716295558,-500.0,0.00025479,2]
[391647184,1760716295568,-945.52,0.00025479,2]
[391647185,1760716295577,-500.0,0.00025479,2]
[391647186,1760716295586,-500.0,0.00025479,2]
[391647187,1760716295596,-1333.69,0.00025479,2]
[391647188,1760716295605,-500.0,0.00025479,2]
[391647189,1760716295615,-500.0,0.00025479,2]
[391647190,1760716295623,-500.0,0.00025479,2]
[391647191,1760716295633,-500.0,0.00025479,2]
[391647192,1760716295643,-500.0,0.00025479,2]
[391647193,1760716295652,-500.0,0.00025479,2]
[391647194,1760716295664,-2493.19,0.00025479,2]
[391647195,1760716295675,-500.0,0.00025479,2]
[391647196,1760716295684,-2016.17,0.00025479,2]
[391647197,1760716295695,-500.0,0.00025479,2]
[391647198,1760716295705,-4194.44,0.00025479,2]
[391647199,1760716295714,-500.0,0.00025479,2]
[391647200,1760716295724,-2738.94,0.00025479,2]
[391647201,1760716295734,-2045.71,0.00025479,2]
[391647202,1760716295744,-500.0,0.00025479,2]
[391647203,1760716295753,-500.0,0.00025479,2]
[391647204,1760716295763,-1485.23,0.00025479,2]
[391647205,1760716295772,-500.0,0.00025479,2]
[391647206,1760716295782,-500.0,0.00025479,2]
[391647207,1760716295949,-774.74,0.00025479,2]
[391647208,1760716295959,-500.0,0.00025479,2]
[391647209,1760716295969,-962.9,0.00025479,2]
[391647210,1760716295979,-358.61393109,0.00025479,2]
[391647211,1760716295989,-500.0,0.00025479,2]
[391647212,1760716295999,-510.4,0.00025479,2]
[391647213,1760716296008,-500.0,0.00025479,2]
[391647214,1760716296018,-180.34429144,0.00025479,2]
[391647215,1760716296029,-500.0,0.00025479,2]
[391647216,1760716296039,-500.0,0.00025479,2]
[391647217,1760716296049,-500.0,0.00025479,2]
[391647218,1760716296059,-541.641861,0.00025479,2]
[391647219,1760716296069,-500.0,0.00025479,2]
[391647220,1760716296079,-168.0,0.00025493,2]
[391647221,1760716296089,-168.0,0.00025493,2]
[391647222,1760716296100,-168.0,0.00025493,2]
[391647223,1760716296110,-168.0,0.00025493,2]
[391647224,1760716296119,-168.0,0.00025493,2]
[391647225,1760716296129,-168.0,0.00025493,2]
[391647226,1760716296139,-168.0,0.00025493,2]
[391647227,1760716296148,-168.0,0.00025493,2]
[391647228,1760716296158,-168.0,0.00025493,2]
[391647229,1760716296168,-168.0,0.00025493,2]
[391647230,1760716296178,-168.0,0.00025493,2]
[391647231,1760716296187,-168.0,0.00025493,2]
[391647232,1760716296196,-168.0,0.00025493,2]
[391647233,1760716296206,-1836.796906,0.000255,5]
[391647234,1760716296215,-151.107744,0.000255,5]
[391647235,1760716296224,-2227.955231,0.000255,5]
[391647236,1760716296234,-3408.0,0.00025518,2]
[391647237,1760716296243,-2050.0,0.00025518,2]
[391647238,1760716296253,-1267.0,0.00025518,2]
[391647239,1760716296263,-749.0,0.00025518,2]
[391647240,1760716296273,-571.0,0.00025518,2]
[391647241,1760716296282,-1310.0,0.00025518,2]
[391647242,1760716296292,-605.0,0.00025518,2]
[391647243,1760716296302,-1589.0,0.00025518,2]
[391647244,1760716296311,-816.0,0.00025518,2]
[391647245,1760716296321,-3356.0,0.00025518,2]
[391647246,1760716296330,-6436.0,0.00025518,2]
[391647247,1760716296340,-6445.0,0.00025518,2]
[391647248,1760716296353,-557.0,0.00025518,2]
[391647249,1760716296362,-151.0,0.00025518,7]
[391647250,1760716296371,-208.429058,0.00025518,7]
[391647251,1760716296382,-208.429058,0.00025518,7]
[391647252,1760716296392,-208.429058,0.00025518,7]
[391647253,1760716296401,-208.429058,0.00025518,7]
[391647254,1760716296411,-151.0,0.00025518,7]
[391647255,1760716296421,-151.0,0.00025518,7]
[391647256,1760716296431,-151.0,0.00025518,7]
[391647257,1760716296440,-153.759991,0.00025518,7]
[391647258,1760716296450,-691.692349,0.00025518,7]
[391647259,1760716296459,-691.692349,0.00025518,7]
[391647260,1760716296468,-691.692349,0.00025518,7]
[391647261,1760716296478,-691.692353,0.00025518,7]
[391647262,1760716296487,-500.0,0.00025527,2]
[391647263,1760716296496,-500.0,0.00025527,2]
[391647264,1760716296506,-500.0,0.00025527,2]
[391647265,1760716296516,-634.91,0.00025527,2]
[391647266,1760716296525,-151.0,0.00025528,7]
[391647267,1760716296535,-151.0,0.00025528,7]
[391647268,1760716296545,-151.0,0.00025528,7]
[391647269,1760716296554,-151.0,0.00025528,7]
[391647270,1760716296563,-151.945036,0.00025528,7]
[391647271,1760716296573,-151.0,0.00025528,7]
[391647272,1760716296582,-292.835847,0.00025528,7]
[391647273,1760716296592,-151.0,0.00025528,7]
[391647274,1760716296603,-151.0,0.00025528,7]
[391647275,1760716296612,-151.0,0.00025528,7]
[391647276,1760716296622,-151.0,0.00025528,7]
[391647277,1760716296631,-151.0,0.00025528,7]
[391647278,1760716296644,-915.185837,0.00025528,7]
[391647279,1760716296653,-151.0,0.00025528,7]
[391647280,1760716296663,-915.185837,0.00025528,7]
[391647281,1760716296672,-915.185837,0.00025528,7]
[391647282,1760716296683,-151.0,0.00025528,7]
[391647283,1760716296693,-915.185837,0.00025528,7]
[391647284,1760716296703,-156.28518,0.00025528,7]
[391647285,1760716296712,-1597.0,0.000256,2]
[391647286,1760716296722,-1000.0,0.000256,2]
[391647287,1760716296733,-269.07195766,0.00025601,2]
[391647288,1760716296742,-153.0,0.00025604,2]
[391647289,1760716296752,-153.0,0.00025604,2]
[391647290,1760716296762,-153.0,0.00025604,2]
[391647291,1760716296772,-153.0,0.00025604,2]
[391647292,1760716296781,-153.0,0.00025604,2]
[391647293,1760716296791,-153.0,0.00025604,2]
[391647294,1760716296800,-154.0,0.00025639,2]
[391647295,1760716296810,-154.0,0.00025639,2]
[391647296,1760716296819,-154.0,0.00025639,2]
[391647297,1760716296829,-154.0,0.00025639,2]
[391647298,1760716296839,-154.0,0.00025639,2]
[391647299,1760716296849,-154.0,0.00025639,2]
[391647300,1760716296859,-154.0,0.00025639,2]
[391647301,1760716296869,-154.0,0.00025639,2]
[391647302,1760716296878,-154.0,0.00025639,2]
[391647303,1760716296888,-154.0,0.00025639,2]
[391647304,1760716296897,-154.0,0.00025639,2]
[391647305,1760716296906,-154.0,0.00025639,2]
[391647306,1760716296915,-154.0,0.00025639,2]
[391647307,1760716296924,-154.0,0.00025639,2]
[391647308,1760716296934,-154.0,0.00025639,2]
[391647309,1760716296943,-154.0,0.00025639,2]
[391647310,1760716296952,-733.36345707,0.00025663,2]
[391647311,1760716296962,-151.0,0.00025742,2]
[391647312,1760716296971,-288.82853643,0.00025742,2]
[391647313,1760716296980,-159.18325225,0.00025748,2]
[391647314,1760716296990,-500.0,0.00025752,2]
[391647315,1760716296999,-500.0,0.00025752,2]
[391647316,1760716297008,-1118.49,0.00025752,2]
[391647317,1760716297019,-579.22,0.00025752,2]
[391647318,1760716297028,-500.0,0.00025752,2]
[391647319,1760716297037,-325.19175519,0.00025752,2]
[391647320,1760716297046,-1615.86,0.00025752,2]
[391647321,1760716297056,-1615.86,0.00025752,2]
[391647322,1760716297065,-1615.86,0.00025752,2]
[391647323,1760716297075,-1615.86,0.00025752,2]
[391647324,1760716297091,-1615.92982528,0.00025752,2]
[391647325,1760716297101,-595.8,0.00025752,2]
[391647326,1760716297110,-595.8,0.00025752,2]
[391647327,1760716297120,-595.8,0.00025752,2]
[391647328,1760716297129,-595.8,0.00025752,2]
[391647329,1760716297138,-596.03373329,0.00025752,2]
[391647330,1760716297148,-220.19654198,0.00025753,2]
[391647331,1760716297158,-1327.45,0.00025753,2]
[391647332,1760716297167,-500.0,0.00025753,2]
[391647333,1760716297176,-500.0,0.00025753,2]
[391647334,1760716297186,-548.43788408,0.00025753,2]
[391647335,1760716297196,-500.0,0.00025753,2]
[391647336,1760716297205,-226.96204938,0.00025753,2]
[391647337,1760716297215,-1391.72,0.00025753,2]
[391647338,1760716297224,-834.3,0.00025753,2]
[391647339,1760716297234,-2254.03,0.00025753,2]
[391647340,1760716297244,-500.0,0.00025753,2]
[391647341,1760716297253,-500.0,0.00025753,2]
[391647342,1760716297263,-2608.34,0.00025753,2]
[391647343,1760716297273,-500.0,0.00025753,2]
[391647344,1760716297282,-500.0,0.00025753,2]
[391647345,1760716297292,-500.0,0.00025753,2]
[391647346,1760716297301,-500.0,0.00025753,2]
[391647347,1760716297311,-753.74,0.00025753,2]
[391647348,1760716297321,-1761.99,0.00025753,2]
[391647349,1760716297330,-660.97,0.00025753,2]
[391647350,1760716297340,-500.0,0.00025753,2]
[391647351,1760716297351,-463.80384374,0.00025753,2]
[391647352,1760716297361,-500.0,0.00025753,2]
[391647353,1760716297371,-500.0,0.00025753,2]
[391647354,1760716297380,-500.0,0.00025753,2]
[391647355,1760716297390,-500.0,0.00025753,2]
[391647356,1760716297400,-370.78323634,0.00025753,2]
[391647357,1760716297409,-500.0,0.00025753,2]
[391647358,1760716297419,-500.0,0.00025753,2]
[391647359,1760716297428,-1320.61,0.00025753,2]
[391647360,1760716297437,-500.0,0.00025753,2]
[391647361,1760716297447,-500.0,0.00025753,2]
[391647362,1760716297456,-500.0,0.00025753,2]
[391647363,1760716297466,-772.28,0.00025753,2]
[391647364,1760716297475,-294.84389133,0.00025753,2]
[391647365,1760716297484,-500.0,0.00025753,2]
[391647366,1760716297494,-500.0,0.00025753,2]
[391647367,1760716297503,-500.0,0.00025753,2]
[391647368,1760716297512,-500.0,0.00025753,2]
[391647369,1760716297522,-1345.39,0.00025753,2]
[391647370,1760716297531,-493.60908985,0.00025753,2]
[391647371,1760716297540,-500.0,0.00025753,2]
[391647372,1760716297551,-500.0,0.00025753,2]
[391647373,1760716297560,-319.62263013,0.00025753,2]
[391647374,1760716297570,-556.12026153,0.00025753,2]
[391647375,1760716297579,-306.77811336,0.00025753,2]
[391647376,1760716297589,-500.84036605,0.00025753,2]
[391647377,1760716297599,-2000.0,0.00025753,7]
[391647378,1760716297608,-500.0,0.00025753,2]
[391647379,1760716297618,-500.0,0.00025753,2]
[391647380,1760716297627,-196.34726387,0.00025753,2]
[391647381,1760716297636,-898.24,0.00025753,2]
[391647382,1760716297646,-251.03464269,0.00025753,2]
[391647383,1760716297657,-500.0,0.00025753,2]
[391647384,1760716297666,-590.72124056,0.00025753,2]
[391647385,1760716297675,-500.0,0.00025753,2]
[391647386,1760716297686,-500.0,0.00025753,2]
[391647387,1760716297695,-368.55321773,0.00025753,2]
[391647388,1760716297704,-500.0,0.00025753,2]
[391647389,1760716297713,-606.07029724,0.00025753,2]
[391647390,1760716297723,-500.0,0.00025753,2]
[391647391,1760716297733,-500.0,0.00025753,2]
[391647392,1760716297743,-411.32558407,0.00025753,2]
[391647393,1760716297752,-1222.84,0.00025753,2]
[391647394,1760716297762,-500.0,0.00025753,2]
[391647395,1760716297773,-500.0,0.00025753,2]
[391647396,1760716297782,-2109.95,0.00025753,2]
[391647397,1760716297792,-751.84,0.00025753,2]
[391647398,1760716297802,-500.0,0.00025753,2]
[391647399,1760716297812,-500.0,0.00025753,2]
[391647400,1760716297822,-500.0,0.00025753,2]
[391647401,1760716297831,-500.0,0.00025753,2]
[391647402,1760716297841,-1024.46,0.00025753,2]
[391647403,1760716297852,-500.0,0.00025753,2]
[391647404,1760716297862,-833.66,0.00025753,2]
[391647405,1760716297873,-1852.0,0.00025753,2]
[391647406,1760716297882,-500.0,0.00025753,2]
[391647407,1760716297892,-500.0,0.00025753,2]
[391647408,1760716297902,-500.0,0.00025753,2]
[391647409,1760716297911,-500.0,0.00025753,2]
[391647410,1760716297921,-500.0,0.00025753,2]
[391647411,1760716297930,-500.0,0.00025753,2]
[391647412,1760716297940,-2060.09,0.00025753,2]
[391647413,1760716297949,-500.0,0.00025753,2]
[391647414,1760716297958,-500.0,0.00025753,2]
[391647415,1760716297968,-500.0,0.00025753,2]
[391647416,1760716297978,-500.0,0.00025753,2]
[391647417,1760716297988,-500.0,0.00025753,2]
[391647418,1760716297998,-500.0,0.00025753,2]
[391647419,1760716298008,-529.49,0.00025753,2]
[391647420,1760716298018,-500.0,0.00025753,2]
[391647421,1760716298027,-500.0,0.00025753,2]
[391647422,1760716298037,-1709.46,0.00025753,2]
[391647423,1760716298047,-712.66,0.00025753,2]
[391647424,1760716298057,-500.0,0.00025753,2]
[391647425,1760716298067,-500.0,0.00025753,2]
[391647426,1760716298077,-500.0,0.00025753,2]
[391647427,1760716298086,-609.73,0.00025753,2]
[391647428,1760716298097,-500.0,0.00025753,2]
[391647429,1760716298107,-500.0,0.00025753,2]
[391647430,1760716298117,-1708.64,0.00025753,2]
[391647431,1760716298127,-441.59717346,0.00025753,2]
[391647432,1760716298137,-1031.44,0.00025753,2]
[391647433,1760716298147,-551.07463726,0.00025753,2]
[391647434,1760716298157,-500.0,0.00025753,2]
[391647435,1760716298167,-500.0,0.00025753,2]
[391647436,1760716298178,-352.42848825,0.00025753,2]
[391647437,1760716298188,-500.0,0.00025753,2]
[391647438,1760716298199,-500.0,0.00025753,2]
[391647439,1760716298210,-500.0,0.00025753,2]
[391647440,1760716298220,-500.0,0.00025753,2]
[391647441,1760716298230,-500.0,0.00025753,2]
[391647442,1760716298241,-203.96152228,0.00025753,2]
[391647443,1760716298251,-500.0,0.00025753,2]
[391647444,1760716298261,-181.51638912,0.00025753,2]
[391647445,1760716298271,-559.04,0.00025753,2]
[391647446,1760716298282,-500.0,0.00025753,2]
[391647447,1760716298292,-500.0,0.00025753,2]
[391647448,1760716298303,-500.0,0.00025753,2]
[391647449,1760716298313,-500.0,0.00025753,2]
[391647450,1760716298323,-500.0,0.00025753,2]
[391647451,1760716298332,-500.0,0.00025753,2]
[391647452,1760716298342,-500.0,0.00025753,2]
[391647453,1760716298355,-500.0,0.00025753,2]
[391647454,1760716298365,-500.0,0.00025753,2]
[391647455,1760716298375,-500.0,0.00025753,2]
[391647456,1760716298386,-500.0,0.00025753,2]
[391647457,1760716298397,-500.0,0.00025753,2]
[391647458,1760716298407,-500.0,0.00025753,2]
[391647459,1760716298417,-500.0,0.00025753,2]
[391647460,1760716298426,-348.89908928,0.00025753,2]
[391647461,1760716298435,-500.0,0.00025753,2]
[391647462,1760716298445,-502.4,0.00025753,2]
[391647463,1760716298455,-500.0,0.00025753,2]
[391647464,1760716298465,-500.0,0.00025753,2]
[391647465,1760716298475,-500.0,0.00025753,2]
[391647466,1760716298485,-500.0,0.00025753,2]
[391647467,1760716298494,-500.0,0.00025753,2]
[391647468,1760716298504,-619.47,0.00025753,2]
[391647469,1760716298514,-667.35,0.00025753,2]
[391647470,1760716298523,-500.0,0.00025753,2]
[391647471,1760716298533,-1012.0,0.00025753,2]
[391647472,1760716298542,-2301.51,0.00025753,2]
[391647473,1760716298552,-1812.54,0.00025753,2]
[391647474,1760716298562,-500.0,0.00025753,2]
[391647475,1760716298572,-500.0,0.00025753,2]
[391647476,1760716298581,-500.0,0.00025753,2]
[391647477,1760716298592,-1000.0,0.00025753,2]
[391647478,1760716298605,-500.0,0.00025753,2]
[391647479,1760716298615,-500.0,0.00025753,2]
[391647480,1760716298625,-500.0,0.00025753,2]
[391647481,1760716298636,-843.1,0.00025753,2]
[391647482,1760716298650,-500.0,0.00025753,2]
[391647483,1760716298660,-1602.13,0.00025753,2]
[391647484,1760716298670,-493.42744424,0.00025753,2]
[391647485,1760716298680,-500.0,0.00025753,2]
[391647486,1760716298691,-500.0,0.00025753,2]
[391647487,1760716298701,-500.0,0.00025753,2]
[391647488,1760716298711,-746.37,0.00025753,2]
[391647489,1760716298721,-500.0,0.00025753,2]
[391647490,1760716298731,-500.0,0.00025753,2]
[391647491,1760716298741,-500.0,0.00025753,2]
[391647492,1760716298751,-533.82,0.00025753,2]
[391647493,1760716298760,-1139.78,0.00025753,2]
[391647494,1760716298770,-500.0,0.00025753,2]
[391647495,1760716298780,-500.0,0.00025753,2]
[391647496,1760716298790,-632.01,0.00025753,2]
[391647497,1760716298800,-500.0,0.00025753,2]
[391647498,1760716298810,-161.31216276,0.00025753,2]
[391647499,1760716298819,-500.0,0.00025753,2]
[391647500,1760716298830,-2068.6,0.00025753,2]
[391647501,1760716298840,-500.0,0.00025753,2]
[391647502,1760716298852,-1257.56,0.00025753,2]
[391647503,1760716298862,-500.0,0.00025753,2]
[391647504,1760716298872,-500.0,0.00025753,2]
[391647505,1760716298882,-500.0,0.00025753,2]
[391647506,1760716298891,-500.0,0.00025753,2]
[391647507,1760716298902,-500.0,0.00025753,2]
[391647508,1760716298912,-482.45420398,0.00025753,2]
[391647509,1760716298921,-714.32,0.00025753,2]
[391647510,1760716298930,-620.83935228,0.00025753,2]
[391647511,1760716298940,-500.0,0.00025753,2]
[391647512,1760716298951,-500.0,0.00025753,2]
[391647513,1760716298962,-500.0,0.00025753,2]
[391647514,1760716298973,-3563.61,0.00025753,2]
[391647515,1760716299135,-981.38,0.00025753,2]
[391647516,1760716299164,-1192.11,0.00025753,2]
[391647517,1760716299175,-1753.72,0.00025753,2]
[391647518,1760716299185,-500.0,0.00025753,2]
[391647519,1760716299195,-500.0,0.00025753,2]
[391647520,1760716299206,-500.0,0.00025753,2]
[391647521,1760716299216,-300.0,0.00025753,2]
[391647522,1760716299226,-652.64,0.00025753,2]
[391647523,1760716299236,-1000.0,0.00025753,2]
[391647524,1760716299247,-500.0,0.00025753,2]
[391647525,1760716299257,-275.54981069,0.00025753,2]
[391647526,1760716299266,-500.0,0.00025753,2]
[391647527,1760716299276,-820.53,0.00025753,2]
[391647528,1760716299286,-500.0,0.00025753,2]
[391647529,1760716299296,-500.0,0.00025753,2]
[391647530,1760716299305,-500.0,0.00025753,2]
[391647531,1760716299315,-500.0,0.00025753,2]
[391647532,1760716299325,-500.0,0.00025753,2]
[391647533,1760716299351,-1319.44,0.00025753,2]
[391647534,1760716299362,-500.0,0.00025753,2]
[391647535,1760716299372,-1052.39,0.00025753,2]
[391647536,1760716299383,-436.11563874,0.00025753,2]
[391647537,1760716299393,-195.195713,0.00025753,2]
[391647538,1760716299403,-1787.43,0.00025753,2]
[391647539,1760716299412,-500.0,0.00025753,2]
[391647540,1760716299422,-500.0,0.00025753,2]
[391647541,1760716299431,-500.0,0.00025753,2]
[391647542,1760716299440,-500.0,0.00025753,2]
[391647543,1760716299450,-689.83,0.00025753,2]
[391647544,1760716299460,-500.0,0.00025753,2]
[391647545,1760716299469,-945.52,0.00025753,2]
[391647546,1760716299479,-500.0,0.00025753,2]
[391647547,1760716299490,-500.0,0.00025753,2]
[391647548,1760716299499,-1333.69,0.00025753,2]
[391647549,1760716299508,-500.0,0.00025753,2]
[391647550,1760716299518,-500.0,0.00025753,2]
[391647551,1760716299528,-500.0,0.00025753,2]
[391647552,1760716299537,-500.0,0.00025753,2]
[391647553,1760716299547,-500.0,0.00025753,2]
[391647554,1760716299556,-500.0,0.00025753,2]
[391647555,1760716299566,-2493.19,0.00025753,2]
[391647556,1760716299576,-500.0,0.00025753,2]
[391647557,1760716299586,-2016.17,0.00025753,2]
[391647558,1760716299600,-500.0,0.00025753,2]
[391647559,1760716299610,-4194.44,0.00025753,2]
[391647560,1760716299620,-500.0,0.00025753,2]
[391647561,1760716299631,-2738.94,0.00025753,2]
[391647562,1760716299644,-2045.71,0.00025753,2]
[391647563,1760716299653,-500.0,0.00025753,2]
[391647564,1760716299663,-456.66389404,0.00025753,2]
[391647565,1760716299672,-1485.23,0.00025753,2]
[391647566,1760716299682,-500.0,0.00025753,2]
[391647567,1760716299693,-500.0,0.00025753,2]
[391647568,1760716299702,-774.74,0.00025753,2]
[391647569,1760716299711,-500.0,0.00025753,2]
[391647570,1760716299720,-962.9,0.00025753,2]
[391647571,1760716299731,-500.0,0.00025753,2]
[391647572,1760716299741,-510.4,0.00025753,2]
[391647573,1760716299750,-500.0,0.00025753,2]
[391647574,1760716299760,-500.0,0.00025753,2]
[391647575,1760716299770,-500.0,0.00025753,2]
[391647576,1760716299781,-500.0,0.00025753,2]
[391647577,1760716299792,-13137.04,0.000258,7]
[391647578,1760716299802,-634.91,0.0002582,2]
[391647579,1760716299812,-1824.293158,0.00025888,5]
[391647580,1760716299821,-153.733574,0.00025888,5]
[391647581,1760716299831,-1836.796906,0.00025888,5]
[391647582,1760716299840,-151.107744,0.00025888,5]
[391647583,1760716299855,-153.733574,0.00025888,5]
[391647584,1760716299864,-2227.955231,0.00025888,5]
[391647585,1760716299873,-947.96769223,0.00025918,2]
[391647586,1760716299882,-200.0,0.00025972,2]
[391647587,1760716299892,-500.0,0.00025984,7]
[391647588,1760716299902,-500.0,0.00025984,7]
[391647589,1760716299911,-500.0,0.00025984,7]
[391647590,1760716299921,-528.51413319,0.00025984,7]
[391647591,1760716299930,-500.0,0.00025984,7]
[391647592,1760716299939,-500.0,0.00025984,7]
[391647593,1760716299949,-516.6200901,0.00025984,7]
[391647594,1760716299958,-500.0,0.00025984,7]
[391647595,1760716299968,-500.0,0.00025984,7]
[391647596,1760716299977,-500.0,0.00025984,7]
[391647597,1760716299987,-900.0,0.00025984,7]
[391647598,1760716299997,-509.83784598,0.00025984,7]
[391647599,1760716300006,-515.7909494,0.00025984,7]
[391647600,1760716300016,-513.26262359,0.00025984,7]
[391647601,1760716300026,-151.107744,0.00026,7]
[391647602,1760716300036,-1836.796906,0.00026,7]
[391647603,1760716300045,-2227.955231,0.00026,7]
[391647604,1760716300055,-500.0,0.00026024,2]
[391647605,1760716300065,-500.0,0.00026024,2]
[391647606,1760716300074,-500.0,0.00026026,2]
[391647607,1760716300084,-584.02013138,0.00026026,2]
[391647608,1760716300093,-500.0,0.00026026,2]
[391647609,1760716300106,-1118.49,0.00026026,2]
[391647610,1760716300116,-579.22,0.00026026,2]
[391647611,1760716300126,-500.0,0.00026026,2]
[391647612,1760716300135,-1327.45,0.00026027,2]
[391647613,1760716300146,-500.0,0.00026027,2]
[391647614,1760716300155,-500.0,0.00026027,2]
[391647615,1760716300165,-500.0,0.00026027,2]
[391647616,1760716300175,-1391.72,0.00026027,2]
[391647617,1760716300184,-834.3,0.00026027,2]
[391647618,1760716300194,-2254.03,0.00026027,2]
[391647619,1760716300203,-500.0,0.00026027,2]
[391647620,1760716300213,-500.0,0.00026027,2]
[391647621,1760716300222,-2608.34,0.00026027,2]
[391647622,1760716300232,-500.0,0.00026027,2]
[391647623,1760716300242,-500.0,0.00026027,2]
[391647624,1760716300251,-500.0,0.00026027,2]
[391647625,1760716300261,-753.74,0.00026027,2]
[391647626,1760716300271,-1761.99,0.00026027,2]
[391647627,1760716300281,-660.97,0.00026027,2]
[391647628,1760716300290,-500.0,0.00026027,2]
[391647629,1760716300300,-500.0,0.00026027,2]
[391647630,1760716300309,-500.0,0.00026027,2]
[391647631,1760716300319,-500.0,0.00026027,2]
[391647632,1760716300328,-500.0,0.00026027,2]
[391647633,1760716300337,-500.0,0.00026027,2]
[391647634,1760716300351,-500.0,0.00026027,2]
[391647635,1760716300360,-1320.61,0.00026027,2]
[391647636,1760716300370,-500.0,0.00026027,2]
[391647637,1760716300379,-500.0,0.00026027,2]
[391647638,1760716300389,-772.28,0.00026027,2]
[391647639,1760716300399,-629.28220767,0.00026027,2]
[391647640,1760716300408,-500.0,0.00026027,2]
[391647641,1760716300418,-500.0,0.00026027,2]
[391647642,1760716300427,-151.0,0.00026027,7]
[391647643,1760716300437,-500.0,0.00026027,2]
[391647644,1760716300446,-1345.39,0.00026027,2]
[391647645,1760716300456,-500.0,0.00026027,2]
[391647646,1760716300466,-2000.0,0.00026027,7]
[391647647,1760716300476,-500.0,0.00026027,2]
[391647648,1760716300486,-500.0,0.00026027,2]
[391647649,1760716300496,-898.24,0.00026027,2]
[391647650,1760716300506,-500.0,0.00026027,2]